fUST/lending_fUST_20250602
["ID","MTS","AMOUNT","RATE_DAILY","PERIOD"]
[363761831,1748865038656,-430.0,0.00016864,2]
[363761833,1748865038669,-430.0,0.00016864,2]
[363761835,1748865038679,-430.0,0.00016864,2]
[363761837,1748865038689,-430.0,0.00016864,2]
[363761839,1748865038700,-430.0,0.00016864,2]
[363761841,1748865038710,-430.0,0.00016864,2]
[363761843,1748865038720,-430.0,0.00016864,2]
[363761846,1748865038731,-430.0,0.00016864,2]
[363761848,1748865038741,-430.0,0.00016864,2]
[363761850,1748865038751,-430.0,0.00016865,2]
[363761852,1748865038760,-430.0,0.00016865,2]
[363761854,1748865038770,-504.25651522,0.00017082,2]
[363761856,1748865038780,-430.0,0.00017135,2]
[363761858,1748865038789,-430.0,0.00017135,2]
[363761860,1748865038799,-430.0,0.00017135,2]
[363761863,1748865038808,-430.0,0.00017135,2]
[363761865,1748865038818,-430.0,0.00017135,2]
[363761867,1748865038828,-905.15,0.00017135,2]
[363761869,1748865038837,-1698.06,0.00017135,2]
[363761871,1748865038847,-430.0,0.00017135,2]
[363761873,1748865038857,-430.0,0.00017135,2]
[363761875,1748865038867,-3628.97,0.00017135,2]
[363761877,1748865038877,-430.0,0.00017135,2]
[363761879,1748865038886,-2100.78,0.00017135,2]
[363761881,1748865038895,-312.88,0.00017136,2]
[363761883,1748865038904,-1418.93,0.00017136,2]
[363761885,1748865038914,-1352.15,0.00017136,2]
[363761887,1748865038923,-430.0,0.00017136,2]
[363761889,1748865038932,-430.0,0.00017136,2]
[363761891,1748865038942,-556.03,0.00017136,2]
[363761893,1748865038952,-430.0,0.00017136,2]
[363761895,1748865038961,-430.0,0.00017136,2]
[363761897,1748865038971,-430.0,0.00017136,2]
[363761899,1748865038980,-430.0,0.00017136,2]
[363761901,1748865038990,-693.65,0.00017136,2]
[363761903,1748865038999,-430.0,0.00017136,2]
[363761905,1748865039009,-232.53651973,0.00017136,2]
[363761907,1748865039018,-402.14020553,0.00017136,2]
[363761909,1748865039028,-430.0,0.00017136,2]
[363761911,1748865039038,-430.0,0.00017136,2]
[363761913,1748865039048,-427.6122997,0.00017136,2]
[363761915,1748865039057,-430.0,0.00017136,2]
[363761917,1748865039067,-430.0,0.00017136,2]
[363761919,1748865039078,-430.0,0.00017136,2]
[363761921,1748865039088,-430.0,0.00017136,2]
[363761923,1748865039097,-430.0,0.00017136,2]
[363761925,1748865039107,-430.0,0.00017136,2]
[363761928,1748865039124,-430.0,0.00017136,2]
[363761930,1748865039134,-430.0,0.00017136,2]
[363761932,1748865039143,-430.0,0.00017136,2]
[363761934,1748865039153,-430.0,0.00017136,2]
[363761936,1748865039162,-430.0,0.00017136,2]
[363761938,1748865039171,-712.75,0.00017136,2]
[363761940,1748865039181,-430.0,0.00017136,2]
[363761942,1748865039191,-430.0,0.00017136,2]
[363761944,1748865039201,-430.0,0.00017136,2]
[363761946,1748865039210,-430.0,0.00017136,2]
[363761948,1748865039220,-430.0,0.00017136,2]
[363761950,1748865039230,-430.0,0.00017136,2]
[363761952,1748865039239,-292.48,0.00017136,2]
[363761957,1748865039256,-430.0,0.00017136,2]
[363761961,1748865039268,-430.0,0.00017136,2]
[363761964,1748865039279,-430.0,0.00017136,2]
[363761967,1748865039289,-430.0,0.00017136,2]
[363761970,1748865039299,-430.0,0.00017137,2]
[363761973,1748865039308,-430.0,0.00017137,2]
[363761976,1748865039319,-430.0,0.00017137,2]
[363761979,1748865039332,-430.0,0.00017137,2]
[363761982,1748865039343,-203.26,0.00017137,2]
[363761984,1748865039353,-430.0,0.00017137,2]
[363761987,1748865039364,-430.0,0.00017137,2]
[363761990,1748865039373,-422.42,0.00017137,2]
[363761993,1748865039383,-430.0,0.00017137,2]
[363761996,1748865039393,-430.0,0.00017137,2]
[363761999,1748865039403,-430.0,0.00017137,2]
[363762002,1748865039413,-430.0,0.00017137,2]
[363762005,1748865039423,-430.0,0.00017137,2]
[363762008,1748865039433,-430.0,0.00017137,2]
[363762011,1748865039442,-430.0,0.00017137,2]
[363762014,1748865039453,-430.0,0.00017137,2]
[363762017,1748865039462,-430.0,0.00017137,2]
[363762020,1748865039472,-430.0,0.00017137,2]
[363762024,1748865039482,-430.0,0.00017137,2]
[363762027,1748865039491,-155.31874484,0.00017137,2]
[363762033,1748865039518,-274.68125516,0.00017137,2]
[363762036,1748865039528,-327.1825172,0.00017137,2]
[363762039,1748865039539,-430.0,0.00017137,2]
[363762041,1748865039549,-430.0,0.00017137,2]
[363762043,1748865039558,-430.0,0.00017137,2]
[363762046,1748865039568,-446.44018176,0.00017137,2]
[363762048,1748865039579,-430.0,0.00017137,2]
[363762050,1748865039588,-450.0,0.00017137,2]
[363762052,1748865039597,-430.0,0.00017137,2]
[363762054,1748865039607,-430.0,0.00017137,2]
[363762056,1748865039617,-430.0,0.00017137,2]
[363762058,1748865039626,-810.52,0.00017137,2]
[363762060,1748865039635,-430.0,0.00017137,2]
[363762062,1748865039645,-430.0,0.00017137,2]
[363762064,1748865039655,-430.0,0.00017137,2]
[363762066,1748865039665,-430.0,0.00017137,2]
[363762068,1748865039679,-168.94,0.00017137,2]
[363762070,1748865039688,-4672.12,0.00017137,2]
[363762072,1748865039698,-290.47442801,0.00017137,2]
[363762074,1748865039708,-430.0,0.00017137,2]
[363762076,1748865039719,-1912.09,0.00017137,2]
[363762078,1748865039728,-430.0,0.00017137,2]
[363762080,1748865039738,-430.0,0.00017137,2]
[363762082,1748865039748,-430.0,0.00017137,2]
[363762084,1748865039758,-806.8,0.00017137,2]
[363762086,1748865039767,-699.56,0.00017137,2]
[363762088,1748865039777,-430.0,0.00017137,2]
[363762090,1748865039787,-430.0,0.00017137,2]
[363762092,1748865039797,-718.96,0.00017137,2]
[363762094,1748865039806,-343.25994408,0.00017137,2]
[363762096,1748865039815,-430.0,0.00017137,2]
[363762098,1748865039825,-430.0,0.00017137,2]
[363762100,1748865039836,-430.0,0.00017137,2]
[363762103,1748865039845,-430.0,0.00017137,2]
[363762105,1748865039855,-430.0,0.00017137,2]
[363762107,1748865039865,-500.0,0.00017137,2]
[363762110,1748865039878,-430.0,0.00017137,2]
[363762112,1748865039888,-1876.04,0.00017137,2]
[363762115,1748865039898,-430.0,0.00017137,2]
[363762117,1748865039908,-430.0,0.00017137,2]
[363762119,1748865039917,-430.0,0.00017137,2]
[363762121,1748865039927,-430.0,0.00017137,2]
[363762123,1748865039937,-430.0,0.00017137,2]
[363762125,1748865039946,-460.75,0.00017137,2]
[363762127,1748865039956,-451.16714129,0.00017137,2]
[363762129,1748865039966,-430.0,0.00017137,2]
[363762131,1748865039975,-430.0,0.00017137,2]
[363762133,1748865039984,-853.91,0.00017137,2]
[363762135,1748865039993,-430.0,0.00017137,2]
[363762137,1748865040003,-430.0,0.00017137,2]
[363762139,1748865040013,-430.0,0.00017137,2]
[363762141,1748865040022,-430.0,0.00017137,2]
[363762143,1748865040031,-430.0,0.00017137,2]
[363762146,1748865040041,-430.0,0.00017137,2]
[363762148,1748865040051,-430.0,0.00017137,2]
[363762150,1748865040061,-430.0,0.00017137,2]
[363762152,1748865040071,-790.03,0.00017137,2]
[363762154,1748865040082,-565.73,0.00017137,2]
[363762156,1748865040092,-430.0,0.00017137,2]
[363762158,1748865040101,-430.0,0.00017137,2]
[363762160,1748865040111,-430.0,0.00017138,2]
[363762162,1748865040121,-430.0,0.00017138,2]
[363762164,1748865040130,-430.0,0.00017138,2]
[363762166,1748865040140,-430.0,0.00017138,2]
[363762168,1748865040150,-430.0,0.00017138,2]
[363762170,1748865040160,-430.0,0.00017138,2]
[363762172,1748865040170,-433.27,0.00017138,2]
[363762174,1748865040180,-430.0,0.00017138,2]
[363762176,1748865040190,-430.0,0.00017138,2]
[363762178,1748865040200,-430.0,0.00017138,2]
[363762180,1748865040210,-430.0,0.00017138,2]
[363762182,1748865040221,-430.0,0.00017138,2]
[363762184,1748865040230,-430.0,0.00017138,2]
[363762186,1748865040241,-430.0,0.00017138,2]
[363762189,1748865040251,-438.64818622,0.00017138,2]
[363762191,1748865040261,-430.0,0.00017138,2]
[363762193,1748865040270,-430.0,0.00017138,2]
[363762195,1748865040280,-430.0,0.00017138,2]
[363762197,1748865040290,-430.0,0.00017138,2]
[363762199,1748865040300,-430.0,0.00017139,2]
[363762201,1748865040309,-430.0,0.00017139,2]
[363762203,1748865040320,-500.0,0.00017203,2]
[363762205,1748865040333,-242.00330131,0.00017203,2]
[363762207,1748865040344,-500.0,0.00017203,2]
[363762209,1748865040355,-500.0,0.00017203,2]
[363762211,1748865040366,-500.0,0.00017209,2]
[363762213,1748865040376,-500.0,0.00017218,2]
[363762215,1748865040388,-500.0,0.00017268,2]
[363762217,1748865040397,-500.0,0.00017309,2]
[363762219,1748865040407,-500.0,0.00017309,2]
[363762221,1748865040416,-500.0,0.00017321,2]
[363762223,1748865040426,-214.63534523,0.00017321,2]
[363762225,1748865040436,-500.0,0.00017321,2]
[363762227,1748865040447,-846.03463808,0.00017388,2]
[363762229,1748865040458,-324.40680792,0.00017409,2]
[363762232,1748865040469,-420.0,0.00017409,2]
[363762233,1748865040479,-430.0,0.00017409,2]
[363762236,1748865040489,-430.0,0.00017409,2]
[363762238,1748865040500,-430.0,0.00017409,2]
[363762240,1748865040510,-905.15,0.00017409,2]
[363762242,1748865040520,-1698.06,0.00017409,2]
[363762244,1748865040531,-430.0,0.00017409,2]
[363762246,1748865040541,-430.0,0.00017409,2]
[363762248,1748865040552,-3628.97,0.00017409,2]
[363762250,1748865040562,-430.0,0.00017409,2]
[363762252,1748865040572,-2100.78,0.00017409,2]
[363762254,1748865040583,-1418.93,0.0001741,2]
[363762256,1748865040592,-1352.15,0.0001741,2]
[363762258,1748865040602,-430.0,0.0001741,2]
[363762260,1748865040612,-430.0,0.0001741,2]
[363762262,1748865040622,-556.03,0.0001741,2]
[363762264,1748865040632,-430.0,0.0001741,2]
[363762266,1748865040641,-430.0,0.0001741,2]
[363762268,1748865040652,-430.0,0.0001741,2]
[363762270,1748865040662,-430.0,0.0001741,2]
[363762272,1748865040676,-693.65,0.0001741,2]
[363762274,1748865040686,-430.0,0.0001741,2]
[363762289,1748865040819,-437.12544848,0.0001741,2]
[363762291,1748865040829,-430.0,0.0001741,2]
[363762293,1748865040840,-430.0,0.0001741,2]
[363762295,1748865040850,-430.0,0.0001741,2]
[363762297,1748865040861,-430.0,0.0001741,2]
[363762299,1748865040872,-443.52,0.0001741,2]
[363762300,1748865040882,-430.0,0.0001741,2]
[363762303,1748865040892,-430.0,0.0001741,2]
[363762305,1748865040902,-430.0,0.0001741,2]
[363762307,1748865040915,-430.0,0.0001741,2]
[363762308,1748865040927,-430.0,0.0001741,2]
[363762311,1748865040937,-430.0,0.0001741,2]
[363762312,1748865040946,-470.98032784,0.0001741,2]
[363762315,1748865040957,-712.75,0.0001741,2]
[363762317,1748865040966,-430.0,0.0001741,2]
[363762319,1748865040976,-430.0,0.0001741,2]
[363762321,1748865040986,-430.0,0.0001741,2]
[363762323,1748865040995,-250.83,0.0001741,2]
[363762325,1748865041005,-155.37569768,0.0001741,2]
[363762327,1748865041015,-430.0,0.0001741,2]
[363762329,1748865041025,-430.0,0.0001741,2]
[363762331,1748865041035,-246.95776634,0.0001741,2]
[363762333,1748865041044,-430.0,0.0001741,2]
[363762335,1748865041055,-430.0,0.0001741,2]
[363762337,1748865041064,-502.49528655,0.00017411,2]
[363762339,1748865041074,-430.0,0.00017411,2]
[363762341,1748865041083,-430.0,0.00017411,2]
[363762343,1748865041093,-430.0,0.00017411,2]
[363762345,1748865041103,-430.0,0.00017411,2]
[363762347,1748865041113,-430.0,0.00017411,2]
[363762349,1748865041122,-430.0,0.00017411,2]
[363762351,1748865041131,-430.0,0.00017411,2]
[363762353,1748865041141,-430.0,0.00017411,2]
[363762355,1748865041151,-430.0,0.00017411,2]
[363762357,1748865041160,-430.0,0.00017411,2]
[363762359,1748865041170,-430.0,0.00017411,2]
[363762361,1748865041179,-430.0,0.00017411,2]
[363762363,1748865041189,-430.0,0.00017411,2]
[363762365,1748865041199,-430.0,0.00017411,2]
[363762367,1748865041208,-430.0,0.00017411,2]
[363762369,1748865041218,-430.0,0.00017411,2]
[363762371,1748865041227,-430.0,0.00017411,2]
[363762373,1748865041237,-430.0,0.00017411,2]
[363762375,1748865041246,-430.0,0.00017411,2]
[363762377,1748865041257,-430.0,0.00017411,2]
[363762379,1748865041266,-430.0,0.00017411,2]
[363762381,1748865041276,-430.0,0.00017411,2]
[363762383,1748865041285,-810.52,0.00017411,2]
[363762385,1748865041295,-430.0,0.00017411,2]
[363762387,1748865041305,-430.0,0.00017411,2]
[363762389,1748865041314,-430.0,0.00017411,2]
[363762391,1748865041324,-430.0,0.00017411,2]
[363762393,1748865041333,-4672.12,0.00017411,2]
[363762395,1748865041343,-430.0,0.00017411,2]
[363762397,1748865041353,-1912.09,0.00017411,2]
[363762399,1748865041363,-430.0,0.00017411,2]
[363762402,1748865041373,-430.0,0.00017411,2]
[363762404,1748865041384,-299.32061377,0.00017411,2]
[363762406,1748865041393,-806.8,0.00017411,2]
[363762408,1748865041403,-699.56,0.00017411,2]
[363762410,1748865041413,-430.0,0.00017411,2]
[363762412,1748865041422,-430.0,0.00017411,2]
[363762413,1748865041431,-718.96,0.00017411,2]
[363762414,1748865041440,-430.0,0.00017411,2]
[363762415,1748865041450,-430.0,0.00017411,2]
[363762416,1748865041459,-430.0,0.00017411,2]
[363762417,1748865041468,-430.0,0.00017411,2]
[363762418,1748865041477,-567.72755288,0.00017411,2]
[363762419,1748865041486,-500.0,0.00017411,2]
[363762420,1748865041495,-430.0,0.00017411,2]
[363762421,1748865041504,-1876.04,0.00017411,2]
[363762422,1748865041513,-430.0,0.00017411,2]
[363762423,1748865041522,-430.0,0.00017411,2]
[363762424,1748865041531,-430.0,0.00017411,2]
[363762425,1748865041541,-430.0,0.00017411,2]
[363762426,1748865041550,-430.0,0.00017411,2]
[363762427,1748865041559,-460.75,0.00017411,2]
[363762428,1748865041569,-430.0,0.00017411,2]
[363762429,1748865041578,-430.0,0.00017411,2]
[363762430,1748865041587,-853.91,0.00017411,2]
[363762431,1748865041596,-430.0,0.00017411,2]
[363762432,1748865041606,-430.0,0.00017411,2]
[363762434,1748865041615,-430.0,0.00017411,2]
[363762435,1748865041624,-430.0,0.00017411,2]
[363762437,1748865041635,-430.0,0.00017411,2]
[363762439,1748865041644,-430.0,0.00017411,2]
[363762441,1748865041654,-430.0,0.00017411,2]
[363762443,1748865041664,-430.0,0.00017411,2]
[363762445,1748865041678,-790.03,0.00017411,2]
[363762448,1748865041687,-565.73,0.00017411,2]
[363762449,1748865041697,-430.0,0.00017411,2]
[363762451,1748865041707,-430.0,0.00017411,2]
[363762453,1748865041716,-165.67268473,0.00017412,2]
[363762455,1748865041726,-352.8,0.00017412,2]
[363762457,1748865041735,-430.0,0.00017412,2]
[363762459,1748865041746,-430.0,0.00017412,2]
[363762461,1748865041756,-430.0,0.00017412,2]
[363762463,1748865041766,-430.0,0.00017412,2]
[363762465,1748865041775,-433.27,0.00017412,2]
[363762467,1748865041784,-430.0,0.00017412,2]
[363762469,1748865041794,-430.0,0.00017412,2]
[363762471,1748865041804,-430.0,0.00017412,2]
[363762473,1748865041813,-430.0,0.00017412,2]
[363762475,1748865041823,-430.0,0.00017412,2]
[363762477,1748865041833,-430.0,0.00017412,2]
[363762479,1748865041842,-548.36,0.00017412,2]
[363762481,1748865041852,-430.0,0.00017412,2]
[363762483,1748865041862,-430.0,0.00017412,2]
[363762486,1748865041873,-237.78000385,0.00017413,2]
[363762488,1748865041883,-430.0,0.00017413,2]
[363762490,1748865041892,-2774.4,0.00017413,2]
[363762492,1748865041901,-2774.4,0.00017413,2]
[363762494,1748865041910,-2774.4,0.00017413,2]
[363762496,1748865041920,-2774.4,0.00017413,2]
[363762498,1748865041929,-2774.4,0.00017413,2]
[363762500,1748865041939,-2774.4,0.00017413,2]
[363762502,1748865041948,-2774.3,0.00017413,2]
[363762504,1748865041957,-153.53111518,0.00017668,2]
[363762506,1748865041967,-500.0,0.00017668,2]
[363762507,1748865041976,-500.0,0.00017668,2]
[363762509,1748865041985,-500.0,0.00017668,2]
[363762512,1748865041995,-151.0,0.00017668,2]
[363762514,1748865042005,-151.0,0.00017668,2]
[363762516,1748865042014,-163.96688806,0.00017668,2]
[363762518,1748865042024,-500.0,0.00017668,2]
[363762520,1748865042033,-500.0,0.00017668,2]
[363762522,1748865042042,-500.0,0.00017668,2]
[363762524,1748865042052,-151.0,0.00017668,2]
[363762526,1748865042061,-500.0,0.00017668,2]
[363762528,1748865042071,-500.0,0.00017668,2]
[363762530,1748865042080,-151.0,0.00017668,2]
[363762532,1748865042091,-500.0,0.00017668,2]
[363762534,1748865042100,-500.0,0.00017668,2]
[363762536,1748865042110,-430.0,0.00017683,2]
[363762538,1748865042120,-430.0,0.00017683,2]
[363762540,1748865042130,-430.0,0.00017683,2]
[363762542,1748865042139,-905.15,0.00017683,2]
[363762544,1748865042149,-1698.06,0.00017683,2]
[363762546,1748865042158,-430.0,0.00017683,2]
[363762548,1748865042168,-430.0,0.00017683,2]
[363762550,1748865042178,-3628.97,0.00017683,2]
[363762552,1748865042188,-430.0,0.00017683,2]
[363762554,1748865042197,-2100.78,0.00017683,2]
[363762556,1748865042207,-1418.93,0.00017684,2]
[363762558,1748865042217,-1352.15,0.00017684,2]
[363762560,1748865042226,-430.0,0.00017684,2]
[363762562,1748865042235,-430.0,0.00017684,2]
[363762564,1748865042244,-556.03,0.00017684,2]
[363762566,1748865042254,-430.0,0.00017684,2]
[363762568,1748865042263,-430.0,0.00017684,2]
[363762570,1748865042273,-430.0,0.00017684,2]
[363762572,1748865042283,-430.0,0.00017684,2]
[363762574,1748865042292,-693.65,0.00017684,2]
[363762576,1748865042302,-430.0,0.00017684,2]
[363762578,1748865042311,-430.0,0.00017684,2]
[363762580,1748865042321,-430.0,0.00017684,2]
[363762582,1748865042330,-430.0,0.00017684,2]
[363762584,1748865042340,-430.0,0.00017684,2]
[363762586,1748865042349,-430.0,0.00017684,2]
[363762588,1748865042359,-430.0,0.00017684,2]
[363762590,1748865042368,-430.0,0.00017684,2]
[363762592,1748865042378,-430.0,0.00017684,2]
[363762593,1748865042387,-460.04408824,0.00017684,2]
[363762595,1748865042397,-430.0,0.00017684,2]
[363762597,1748865042406,-712.75,0.00017684,2]
[363762599,1748865042415,-430.0,0.00017684,2]
[363762601,1748865042425,-430.0,0.00017684,2]
[363762603,1748865042435,-430.0,0.00017684,2]
[363762605,1748865042444,-430.0,0.00017684,2]
[363762607,1748865042455,-430.0,0.00017684,2]
[363762609,1748865042464,-430.0,0.00017684,2]
[363762611,1748865042474,-161.49234052,0.00017684,2]
[363762613,1748865042483,-430.0,0.00017685,2]
[363762615,1748865042493,-430.0,0.00017685,2]
[363762617,1748865042502,-410.0,0.00017685,2]
[363762619,1748865042512,-430.0,0.00017685,2]
[363762621,1748865042521,-430.0,0.00017685,2]
[363762623,1748865042531,-430.0,0.00017685,2]
[363762626,1748865042541,-430.0,0.00017685,2]
[363762627,1748865042551,-430.0,0.00017685,2]
[363762629,1748865042560,-430.0,0.00017685,2]
[363762631,1748865042569,-430.0,0.00017685,2]
[363762633,1748865042578,-430.0,0.00017685,2]
[363762635,1748865042588,-430.0,0.00017685,2]
[363762638,1748865042598,-430.0,0.00017685,2]
[363762640,1748865042607,-430.0,0.00017685,2]
[363762642,1748865042617,-430.0,0.00017685,2]
[363762643,1748865042626,-430.0,0.00017685,2]
[363762646,1748865042635,-430.0,0.00017685,2]
[363762648,1748865042644,-526.52078024,0.00017685,2]
[363762650,1748865042654,-430.0,0.00017685,2]
[363762651,1748865042663,-430.0,0.00017685,2]
[363762654,1748865042677,-810.52,0.00017685,2]
[363762656,1748865042687,-430.0,0.00017685,2]
[363762658,1748865042696,-430.0,0.00017685,2]
[363762660,1748865042706,-430.0,0.00017685,2]
[363762661,1748865042716,-285.27301878,0.00017685,2]
[363762663,1748865042725,-4672.12,0.00017685,2]
[363762666,1748865042735,-430.0,0.00017685,2]
[363762667,1748865042745,-1912.09,0.00017685,2]
[363762669,1748865042755,-430.0,0.00017685,2]
[363762671,1748865042765,-430.0,0.00017685,2]
[363762673,1748865042775,-806.8,0.00017685,2]
[363762676,1748865042785,-699.56,0.00017685,2]
[363762678,1748865042798,-430.0,0.00017685,2]
[363762680,1748865042807,-430.0,0.00017685,2]
[363762682,1748865042817,-718.96,0.00017685,2]
[363762684,1748865042827,-430.0,0.00017685,2]
[363762686,1748865042837,-430.0,0.00017685,2]
[363762688,1748865042847,-430.0,0.00017685,2]
[363762690,1748865042856,-430.0,0.00017685,2]
[363762693,1748865042866,-500.0,0.00017685,2]
[363762696,1748865042876,-430.0,0.00017685,2]
[363762708,1748865042975,-1876.04,0.00017685,2]
[363762710,1748865042986,-430.0,0.00017685,2]
[363762712,1748865042996,-430.0,0.00017685,2]
[363762714,1748865043007,-430.0,0.00017685,2]
[363762716,1748865043017,-430.0,0.00017685,2]
[363762718,1748865043027,-430.0,0.00017685,2]
[363762720,1748865043036,-460.75,0.00017685,2]
[363762722,1748865043045,-483.6,0.00017685,2]
[363762724,1748865043055,-430.0,0.00017685,2]
[363762726,1748865043064,-853.91,0.00017685,2]
[363762728,1748865043074,-430.0,0.00017685,2]
[363762731,1748865043083,-513.84582529,0.00017685,2]
[363762733,1748865043093,-430.0,0.00017685,2]
[363762735,1748865043102,-430.0,0.00017685,2]
[363762737,1748865043112,-430.0,0.00017685,2]
[363762739,1748865043121,-430.0,0.00017685,2]
[363762741,1748865043131,-430.0,0.00017685,2]
[363762743,1748865043140,-430.0,0.00017685,2]
[363762745,1748865043150,-790.03,0.00017685,2]
[363762747,1748865043159,-565.73,0.00017685,2]
[363762749,1748865043170,-430.0,0.00017685,2]
[363762751,1748865043179,-430.0,0.00017685,2]
[363762753,1748865043189,-430.0,0.00017686,2]
[363762755,1748865043198,-430.0,0.00017686,2]
[363762757,1748865043208,-343.37812412,0.00017686,2]
[363762759,1748865043217,-433.27,0.00017686,2]
[363762761,1748865043226,-510.0,0.00017686,2]
[363762763,1748865043236,-430.0,0.00017686,2]
[363762765,1748865043245,-450.0,0.00017686,2]
[363762767,1748865043255,-430.0,0.00017686,2]
[363762769,1748865043264,-430.0,0.00017686,2]
[363762771,1748865043273,-443.96017812,0.00017686,2]
[363762773,1748865043282,-435.37512492,0.00017686,2]
[363762775,1748865043292,-430.0,0.00017686,2]
[363762777,1748865043301,-430.0,0.00017686,2]
[363762779,1748865043311,-430.0,0.00017687,2]
[363762781,1748865043320,-500.0,0.00017695,2]
[363762783,1748865043332,-500.0,0.00017695,2]
[363762785,1748865043342,-500.0,0.00017695,2]
[363762787,1748865043352,-151.0,0.00017695,2]
[363762789,1748865043361,-151.0,0.00017695,2]
[363762791,1748865043371,-500.0,0.00017695,2]
[363762793,1748865043380,-500.0,0.00017695,2]
[363762795,1748865043390,-500.0,0.00017695,2]
[363762797,1748865043401,-500.0,0.00017695,2]
[363762799,1748865043410,-500.0,0.00017695,2]
[363762801,1748865043420,-500.0,0.00017695,2]
[363762803,1748865043429,-500.0,0.00017695,2]
[363762805,1748865043439,-500.0,0.00017723,2]
[363762807,1748865043448,-500.0,0.00017723,2]
[363762809,1748865043458,-500.0,0.00017723,2]
[363762811,1748865043468,-199.83598337,0.00017723,2]
[363762813,1748865043477,-151.0,0.00017723,2]
[363762815,1748865043487,-347.93882854,0.00017723,2]
[363762817,1748865043496,-500.0,0.00017723,2]
[363762819,1748865043505,-500.0,0.00017723,2]
[363762821,1748865043515,-500.0,0.00017723,2]
[363762823,1748865043525,-448.04849068,0.00017723,2]
[363762825,1748865043535,-500.0,0.00017723,2]
[363762827,1748865043544,-500.0,0.00017723,2]
[363762829,1748865043553,-500.0,0.0001775,2]
[363762831,1748865043563,-500.0,0.0001775,2]
[363762833,1748865043572,-500.0,0.0001775,2]
[363762835,1748865043581,-193.34465452,0.0001775,2]
[363762837,1748865043590,-350.66897876,0.0001775,2]
[363762839,1748865043600,-608.55428632,0.0001775,2]
[363762841,1748865043610,-500.0,0.0001775,2]
[363762843,1748865043620,-500.0,0.0001775,2]
[363762845,1748865043629,-1004.64620244,0.00017751,2]
[363762847,1748865043639,-1000.0,0.00017766,2]
[363762849,1748865043648,-500.0,0.00017778,2]
[363762851,1748865043658,-500.0,0.00017778,2]
[363762853,1748865043668,-565.41779745,0.00017778,2]
[363762855,1748865043679,-174.31816384,0.00017778,2]
[363762857,1748865043688,-500.0,0.00017778,2]
[363762859,1748865043698,-500.0,0.00017805,2]
[363762861,1748865043708,-500.0,0.00017805,2]
[363762863,1748865043718,-500.0,0.00017805,2]
[363762865,1748865043727,-1000.0,0.00017816,2]
[363762867,1748865043737,-500.0,0.00017832,2]
[363762869,1748865043749,-500.0,0.00017832,2]
[363762871,1748865043759,-500.0,0.00017832,2]
[363762874,1748865043769,-273.30862803,0.0001786,2]
[363762876,1748865043778,-500.0,0.0001786,2]
[363762877,1748865043788,-500.0,0.0001786,2]
[363762880,1748865043798,-160.0,0.0001786,2]